[Event "Titled Tuesday Blitz April 11 Early 2023"]
[White "Dobre, Claudiu-Cristian"]
[Black "Rose, Felix"]
[WhiteFideId "1211854"]
[BlackFideId "5105722"]
[WhiteElo "2207"]
[BlackElo "2039"]
[Result "1-0"]
[Round "02"]
[TimeControl "180+2"]
[Date "2023.04.11"]
[WhiteClock "0:00:09"]
[BlackClock "0:00:11"]

1. e4 {[%clk 0:03:00]}  e5 {[%clk 0:02:58]} 2. Nf3 {[%clk 0:03:00]}  Nc6 {[%clk 0:02:58]} 3. Bc4 {[%clk 0:03:00]}  Nf6 {[%clk 0:02:58]} 4. d3 {[%clk 0:03:00]}  Bc5 {[%clk 0:02:58]} 5. O-O {[%clk 0:02:59]}  d6 {[%clk 0:02:57]} 6. a4 {[%clk 0:02:58]}  a5 {[%clk 0:02:57]} 7. c3 {[%clk 0:02:56]}  Ba7 {[%clk 0:02:56]} 8. Na3 {[%clk 0:02:54]}  O-O {[%clk 0:02:53]} 9. Nb5 {[%clk 0:02:54]}  Bb6 {[%clk 0:02:54]} 10. Be3 {[%clk 0:02:54]}  Bxe3 {[%clk 0:02:52]} 11. fxe3 {[%clk 0:02:54]}  Be6 {[%clk 0:02:52]} 12. Na3 {[%clk 0:02:48]}  Re8 {[%clk 0:02:44]} 13. Ng5 {[%clk 0:02:41]}  Bxc4 {[%clk 0:02:43]} 14. Nxc4 {[%clk 0:02:40]}  h6 {[%clk 0:02:29]} 15. Nf3 {[%clk 0:02:40]}  d5 {[%clk 0:02:28]} 16. exd5 {[%clk 0:02:39]}  Qxd5 {[%clk 0:02:27]} 17. Nh4 {[%clk 0:01:51]}  e4 {[%clk 0:01:28]} 18. Rf5 {[%clk 0:01:49]}  Qxd3 {[%clk 0:01:27]} 19. Qxd3 {[%clk 0:01:45]}  exd3 {[%clk 0:01:27]} 20. Rd1 {[%clk 0:01:42]}  Rad8 {[%clk 0:01:14]} 21. Nf3 {[%clk 0:01:13]}  b6 {[%clk 0:01:05]} 22. Nd4 {[%clk 0:01:13]}  Nxd4 {[%clk 0:00:46]} 23. exd4 {[%clk 0:00:48]}  Ng4 {[%clk 0:00:19]} 24. Rf3 {[%clk 0:00:26]}  d2 {[%clk 0:00:12]} 25. h3 {[%clk 0:00:15]}  Re1+ {[%clk 0:00:12]} 26. Rf1 {[%clk 0:00:15]}  Rxf1+ {[%clk 0:00:06]} 27. Kxf1 {[%clk 0:00:14]}  Nf6 {[%clk 0:00:03]} 28. Rxd2 {[%clk 0:00:14]}  Re8 {[%clk 0:00:03]} 29. Re2 {[%clk 0:00:14]}  Rxe2 {[%clk 0:00:04]} 30. Kxe2 {[%clk 0:00:14]}  Kf8 {[%clk 0:00:04]} 31. Ne5 {[%clk 0:00:14]}  Ke7 {[%clk 0:00:04]} 32. Kf3 {[%clk 0:00:13]}  Ke6 {[%clk 0:00:04]} 33. Kf4 {[%clk 0:00:12]}  Nd5+ {[%clk 0:00:03]} 34. Ke4 {[%clk 0:00:12]}  Nf6+ {[%clk 0:00:04]} 35. Kd3 {[%clk 0:00:12]}  Nd5 {[%clk 0:00:02]} 36. g3 {[%clk 0:00:11]}  f6 {[%clk 0:00:02]} 37. Nc6 {[%clk 0:00:08]}  Ne7 {[%clk 0:00:02]} 38. Na7 {[%clk 0:00:08]}  Kd6 {[%clk 0:00:02]} 39. Nb5+ {[%clk 0:00:07]}  Kc6 {[%clk 0:00:02]} 40. c4 {[%clk 0:00:07]}  Kd7 {[%clk 0:00:02]} 41. Nc3 {[%clk 0:00:06]}  c6 {[%clk 0:00:03]} 42. Ne4 {[%clk 0:00:06]}  Ke6 {[%clk 0:00:03]} 43. c5 {[%clk 0:00:06]}  Nc8 {[%clk 0:00:02]} 44. cxb6 {[%clk 0:00:06]}  Nxb6 {[%clk 0:00:03]} 45. Nc5+ {[%clk 0:00:06]}  Kd5 {[%clk 0:00:04]} 46. b3 {[%clk 0:00:07]}  f5 {[%clk 0:00:04]} 47. Nb7 {[%clk 0:00:07]}  g6 {[%clk 0:00:02]} 48. Nxa5 {[%clk 0:00:07]}  c5 {[%clk 0:00:02]} 49. dxc5 {[%clk 0:00:06]}  Kxc5 {[%clk 0:00:03]} 50. Nc4 {[%clk 0:00:06]}  Nd5 {[%clk 0:00:03]} 51. Ne5 {[%clk 0:00:06]}  g5 {[%clk 0:00:03]} 52. Nf7 {[%clk 0:00:06]}  f4 {[%clk 0:00:03]} 53. g4 {[%clk 0:00:07]}  Nb4+ {[%clk 0:00:03]} 54. Ke4 {[%clk 0:00:07]}  Nc2 {[%clk 0:00:03]} 55. Nxh6 {[%clk 0:00:06]}  Kb4 {[%clk 0:00:04]} 56. Nf7 {[%clk 0:00:06]}  Kxb3 {[%clk 0:00:04]} 57. a5 {[%clk 0:00:07]}  Ne1 {[%clk 0:00:04]} 58. a6 {[%clk 0:00:06]}  f3 {[%clk 0:00:05]} 59. Ke3 {[%clk 0:00:06]}  f2 {[%clk 0:00:05]} 60. Kxf2 {[%clk 0:00:07]}  Nd3+ {[%clk 0:00:06]} 61. Kg3 {[%clk 0:00:07]}  Nc5 {[%clk 0:00:06]} 62. a7 {[%clk 0:00:08]}  Ne4+ {[%clk 0:00:07]} 63. Kh2 {[%clk 0:00:07]}  Nd6 {[%clk 0:00:08]} 64. a8=Q {[%clk 0:00:07]}  Nxf7 {[%clk 0:00:08]} 65. Qd5+ {[%clk 0:00:07]}  Kc3 {[%clk 0:00:09]} 66. Qxf7 {[%clk 0:00:08]}  Kd3 {[%clk 0:00:10]} 67. Qf5+ {[%clk 0:00:09]}  Ke3 {[%clk 0:00:11]} 68. Qxg5+ {[%clk 0:00:09]}  Kf3 {[%clk 0:00:11]} 69. Qf5+ {[%clk 0:00:09]} 1-0


[Site "https://www.chess.com"]

[Event "Titled Tuesday Blitz April 11 Early 2023"]
[White "Budrewicz, Krzysztof"]
[Black "Qashashvili, Alexandre"]
[WhiteFideId "1127950"]
[BlackFideId "13600842"]
[WhiteElo "2230"]
[BlackElo "2405"]
[Result "1-0"]
[Round "02"]
[TimeControl "180+2"]
[Date "2023.04.11"]
[WhiteClock "0:01:43"]
[BlackClock "0:00:50"]

1. d4 {[%clk 0:03:00]}  c6 {[%clk 0:02:49]} 2. c4 {[%clk 0:03:00]}  d5 {[%clk 0:02:50]} 3. Nf3 {[%clk 0:03:00]}  Bf5 {[%clk 0:02:48]} 4. Nc3 {[%clk 0:03:00]}  e6 {[%clk 0:02:45]} 5. Bg5 {[%clk 0:02:58]}  Be7 {[%clk 0:02:44]} 6. Bxe7 {[%clk 0:02:58]}  Nxe7 {[%clk 0:02:44]} 7. e3 {[%clk 0:02:59]}  Nd7 {[%clk 0:02:41]} 8. Qb3 {[%clk 0:02:59]}  Qb6 {[%clk 0:02:40]} 9. Be2 {[%clk 0:02:59]}  Qxb3 {[%clk 0:02:39]} 10. axb3 {[%clk 0:02:59]}  O-O {[%clk 0:02:38]} 11. O-O {[%clk 0:02:58]}  Nf6 {[%clk 0:02:35]} 12. Ne5 {[%clk 0:02:57]}  Ne4 {[%clk 0:02:34]} 13. Rfd1 {[%clk 0:02:53]}  a6 {[%clk 0:02:30]} 14. f3 {[%clk 0:02:52]}  Nxc3 {[%clk 0:02:30]} 15. bxc3 {[%clk 0:02:53]}  Ng6 {[%clk 0:02:29]} 16. Nd3 {[%clk 0:02:49]}  Bxd3 {[%clk 0:02:27]} 17. Bxd3 {[%clk 0:02:49]}  Rfe8 {[%clk 0:02:22]} 18. c5 {[%clk 0:02:47]}  e5 {[%clk 0:02:21]} 19. Kf2 {[%clk 0:02:47]}  e4 {[%clk 0:02:16]} 20. fxe4 {[%clk 0:02:44]}  dxe4 {[%clk 0:02:17]} 21. Bc4 {[%clk 0:02:44]}  Ne7 {[%clk 0:02:14]} 22. Ra4 {[%clk 0:02:43]}  Nd5 {[%clk 0:02:14]} 23. Bxd5 {[%clk 0:02:42]}  cxd5 {[%clk 0:02:15]} 24. Rb4 {[%clk 0:02:43]}  Re7 {[%clk 0:02:14]} 25. Rb6 {[%clk 0:02:43]}  Rd8 {[%clk 0:02:09]} 26. Ra1 {[%clk 0:02:42]}  Rc7 {[%clk 0:02:06]} 27. Ra4 {[%clk 0:02:41]}  f5 {[%clk 0:02:01]} 28. h4 {[%clk 0:02:41]}  g6 {[%clk 0:02:01]} 29. Kg3 {[%clk 0:02:41]}  Kg7 {[%clk 0:02:00]} 30. Kf4 {[%clk 0:02:41]}  Rdd7 {[%clk 0:01:55]} 31. Rab4 {[%clk 0:02:41]}  Kf7 {[%clk 0:01:54]} 32. Kg5 {[%clk 0:01:54]}  Kg7 {[%clk 0:01:49]} 33. h5 {[%clk 0:01:51]}  h6+ {[%clk 0:01:25]} 34. Kf4 {[%clk 0:01:51]}  gxh5 {[%clk 0:01:25]} 35. Kxf5 {[%clk 0:01:51]}  Rf7+ {[%clk 0:01:25]} 36. Ke5 {[%clk 0:01:51]}  Rcd7 {[%clk 0:01:24]} 37. Rd6 {[%clk 0:01:48]}  Rde7+ {[%clk 0:01:06]} 38. Kxd5 {[%clk 0:01:49]}  Rf2 {[%clk 0:01:05]} 39. Rdb6 {[%clk 0:01:43]}  Rxg2 {[%clk 0:01:04]} 40. Rxb7 {[%clk 0:01:43]}  Rg5+ {[%clk 0:01:03]} 41. Kc4 {[%clk 0:01:42]}  Rxb7 {[%clk 0:00:54]} 42. Rxb7+ {[%clk 0:01:43]}  Kf8 {[%clk 0:00:53]} 43. c6 {[%clk 0:01:44]}  Ke8 {[%clk 0:00:50]} 44. Rb8+ {[%clk 0:01:43]} 1-0


[Site "https://www.chess.com"]

[Event "Titled Tuesday Blitz April 11 Early 2023"]
[White "Hnydiuk, Aleksander"]
[Black "Makhmudov, Shukhrat"]
[WhiteFideId "1109057"]
[BlackFideId "14200775"]
[WhiteElo "2374"]
[BlackElo "2135"]
[Result "1-0"]
[Round "02"]
[TimeControl "180+2"]
[Date "2023.04.11"]
[WhiteClock "0:00:36"]
[BlackClock "0:00:24"]

1. e4 {[%clk 0:03:00]}  e5 {[%clk 0:03:00]} 2. Nf3 {[%clk 0:02:59]}  Nc6 {[%clk 0:03:00]} 3. d4 {[%clk 0:02:59]}  exd4 {[%clk 0:03:00]} 4. Nxd4 {[%clk 0:03:00]}  Nf6 {[%clk 0:03:00]} 5. Nxc6 {[%clk 0:03:00]}  bxc6 {[%clk 0:03:01]} 6. Qe2 {[%clk 0:03:00]}  a5 {[%clk 0:02:48]} 7. Bg5 {[%clk 0:02:23]}  Be7 {[%clk 0:02:44]} 8. Nc3 {[%clk 0:02:16]}  O-O {[%clk 0:02:34]} 9. O-O-O {[%clk 0:02:16]}  d6 {[%clk 0:02:22]} 10. e5 {[%clk 0:02:12]}  Nd5 {[%clk 0:02:16]} 11. Bxe7 {[%clk 0:02:12]}  Nxc3 {[%clk 0:02:04]} 12. Bxd8 {[%clk 0:02:05]}  Nxe2+ {[%clk 0:02:04]} 13. Bxe2 {[%clk 0:02:06]}  Rxd8 {[%clk 0:02:04]} 14. exd6 {[%clk 0:02:02]}  cxd6 {[%clk 0:02:04]} 15. Bf3 {[%clk 0:02:00]}  d5 {[%clk 0:01:59]} 16. c4 {[%clk 0:01:58]}  Be6 {[%clk 0:01:51]} 17. cxd5 {[%clk 0:01:48]}  Bxd5 {[%clk 0:01:48]} 18. Bxd5 {[%clk 0:01:38]}  cxd5 {[%clk 0:01:48]} 19. Rd4 {[%clk 0:01:34]}  Rac8+ {[%clk 0:01:41]} 20. Kb1 {[%clk 0:01:34]}  Kf8 {[%clk 0:01:36]} 21. Rc1 {[%clk 0:01:33]}  Rxc1+ {[%clk 0:01:34]} 22. Kxc1 {[%clk 0:01:34]}  Ke7 {[%clk 0:01:34]} 23. Ra4 {[%clk 0:01:30]}  Ra8 {[%clk 0:01:33]} 24. Kd2 {[%clk 0:01:28]}  Rb8 {[%clk 0:01:30]} 25. Kc3 {[%clk 0:01:25]}  Rb5 {[%clk 0:01:28]} 26. b3 {[%clk 0:01:16]}  Kd6 {[%clk 0:01:24]} 27. Rh4 {[%clk 0:01:14]}  h6 {[%clk 0:01:21]} 28. Rf4 {[%clk 0:01:12]}  Ke6 {[%clk 0:01:08]} 29. h4 {[%clk 0:01:11]}  h5 {[%clk 0:01:06]} 30. Rf3 {[%clk 0:01:05]}  Rb4 {[%clk 0:00:50]} 31. g3 {[%clk 0:01:01]}  f6 {[%clk 0:00:44]} 32. a3 {[%clk 0:00:55]}  Re4 {[%clk 0:00:38]} 33. Kd3 {[%clk 0:00:47]}  Ke5 {[%clk 0:00:37]} 34. Re3 {[%clk 0:00:45]}  f5 {[%clk 0:00:31]} 35. f3 {[%clk 0:00:43]}  Rxe3+ {[%clk 0:00:30]} 36. Kxe3 {[%clk 0:00:44]}  f4+ {[%clk 0:00:29]} 37. gxf4+ {[%clk 0:00:43]}  Kf5 {[%clk 0:00:30]} 38. b4 {[%clk 0:00:42]}  axb4 {[%clk 0:00:28]} 39. axb4 {[%clk 0:00:43]}  d4+ {[%clk 0:00:28]} 40. Kxd4 {[%clk 0:00:40]}  Kxf4 {[%clk 0:00:27]} 41. b5 {[%clk 0:00:40]}  g5 {[%clk 0:00:27]} 42. b6 {[%clk 0:00:36]}  gxh4 {[%clk 0:00:25]} 43. b7 {[%clk 0:00:37]}  Kxf3 {[%clk 0:00:24]} 44. b8=Q {[%clk 0:00:37]}  h3 {[%clk 0:00:24]} 45. Qh2 {[%clk 0:00:36]} 1-0


[Site "https://www.chess.com"]

[Event "Titled Tuesday Blitz April 11 Early 2023"]
[White "Jiganchine, Roman"]
[Black "Mortazavi, Ali"]
[WhiteFideId "2603667"]
[BlackFideId "401323"]
[WhiteElo "2288"]
[BlackElo "2339"]
[Result "0-1"]
[Round "02"]
[TimeControl "180+2"]
[Date "2023.04.11"]
[WhiteClock "0:00:02"]
[BlackClock "0:00:12"]

1. e4 {[%clk 0:03:00]}  c6 {[%clk 0:02:57]} 2. d4 {[%clk 0:02:59]}  d5 {[%clk 0:02:57]} 3. exd5 {[%clk 0:02:59]}  cxd5 {[%clk 0:02:57]} 4. Nf3 {[%clk 0:03:00]}  Nc6 {[%clk 0:02:56]} 5. c4 {[%clk 0:02:58]}  Nf6 {[%clk 0:02:55]} 6. Nc3 {[%clk 0:02:57]}  g6 {[%clk 0:02:55]} 7. cxd5 {[%clk 0:02:41]}  Nxd5 {[%clk 0:02:54]} 8. Qb3 {[%clk 0:02:40]}  Nxc3 {[%clk 0:02:31]} 9. Bc4 {[%clk 0:02:36]}  e6 {[%clk 0:02:31]} 10. bxc3 {[%clk 0:02:35]}  a6 {[%clk 0:02:01]} 11. Be2 {[%clk 0:01:46]}  Na5 {[%clk 0:01:29]} 12. Qc2 {[%clk 0:01:39]}  Qc7 {[%clk 0:01:29]} 13. O-O {[%clk 0:01:37]}  Bd6 {[%clk 0:01:29]} 14. Bh6 {[%clk 0:01:30]}  Bd7 {[%clk 0:01:21]} 15. c4 {[%clk 0:01:18]}  O-O-O {[%clk 0:00:47]} 16. Bg7 {[%clk 0:00:56]}  Rhg8 {[%clk 0:00:46]} 17. Bf6 {[%clk 0:00:56]}  Rde8 {[%clk 0:00:45]} 18. Ne5 {[%clk 0:00:51]}  Nc6 {[%clk 0:00:40]} 19. Nxd7 {[%clk 0:00:30]}  Qxd7 {[%clk 0:00:38]} 20. Bf3 {[%clk 0:00:27]}  Be7 {[%clk 0:00:26]} 21. Be5 {[%clk 0:00:17]}  f6 {[%clk 0:00:20]} 22. Bxc6 {[%clk 0:00:07]}  Qxc6 {[%clk 0:00:20]} 23. Bg3 {[%clk 0:00:07]}  Rd8 {[%clk 0:00:21]} 24. d5 {[%clk 0:00:04]}  exd5 {[%clk 0:00:20]} 25. Rfe1 {[%clk 0:00:04]}  Bd6 {[%clk 0:00:13]} 26. Rac1 {[%clk 0:00:03]}  d4 {[%clk 0:00:13]} 27. Qd3 {[%clk 0:00:02]}  Bxg3 {[%clk 0:00:13]} 28. hxg3 {[%clk 0:00:02]}  f5 {[%clk 0:00:11]} 29. Re7 {[%clk 0:00:02]}  Rd7 {[%clk 0:00:11]} 30. Rce1 {[%clk 0:00:02]}  Rgd8 {[%clk 0:00:12]} 0-1


[Site "https://www.chess.com"]

[Event "Titled Tuesday Blitz April 11 Early 2023"]
[White "Fajdetic, Hrvoje"]
[Black "Goffredo_Fofi"]
[WhiteFideId "14501945"]
[WhiteElo "2185"]
[BlackElo "2516"]
[Result "1-0"]
[Round "02"]
[TimeControl "180+2"]
[Date "2023.04.11"]
[WhiteClock "0:00:13"]
[BlackClock "0:00:01"]

1. d4 {[%clk 0:03:00]}  Nf6 {[%clk 0:03:00]} 2. Bf4 {[%clk 0:03:00]}  g6 {[%clk 0:02:59]} 3. Nc3 {[%clk 0:03:00]}  d5 {[%clk 0:02:59]} 4. e3 {[%clk 0:03:00]}  Bg7 {[%clk 0:02:59]} 5. h4 {[%clk 0:02:59]}  h5 {[%clk 0:02:59]} 6. Nf3 {[%clk 0:02:59]}  O-O {[%clk 0:02:58]} 7. Ne5 {[%clk 0:02:59]}  c5 {[%clk 0:02:58]} 8. Be2 {[%clk 0:02:59]}  Nc6 {[%clk 0:02:53]} 9. Qd2 {[%clk 0:02:51]}  Qa5 {[%clk 0:02:45]} 10. O-O-O {[%clk 0:02:48]}  Be6 {[%clk 0:02:37]} 11. Kb1 {[%clk 0:02:47]}  cxd4 {[%clk 0:02:25]} 12. exd4 {[%clk 0:02:48]}  Rac8 {[%clk 0:02:25]} 13. f3 {[%clk 0:02:24]}  Nd7 {[%clk 0:01:45]} 14. Nxd7 {[%clk 0:01:56]}  Bxd7 {[%clk 0:01:44]} 15. Bh6 {[%clk 0:01:38]}  Bxh6 {[%clk 0:00:20]} 16. Qxh6 {[%clk 0:01:39]}  Bf5 {[%clk 0:00:21]} 17. a3 {[%clk 0:01:28]}  b5 {[%clk 0:00:19]} 18. Bxb5 {[%clk 0:01:22]}  Nxd4 {[%clk 0:00:15]} 19. Rxd4 {[%clk 0:01:16]}  Rxc3 {[%clk 0:00:16]} 20. bxc3 {[%clk 0:01:09]}  Qxb5+ {[%clk 0:00:16]} 21. Rb4 {[%clk 0:01:07]}  Qc5 {[%clk 0:00:16]} 22. g4 {[%clk 0:01:03]}  a5 {[%clk 0:00:16]} 23. gxf5 {[%clk 0:00:55]}  axb4 {[%clk 0:00:16]} 24. fxg6 {[%clk 0:00:55]}  fxg6 {[%clk 0:00:09]} 25. Qxg6+ {[%clk 0:00:55]}  Kh8 {[%clk 0:00:10]} 26. Qxh5+ {[%clk 0:00:40]}  Kg7 {[%clk 0:00:09]} 27. Qg4+ {[%clk 0:00:40]}  Kh7 {[%clk 0:00:08]} 28. Qxb4 {[%clk 0:00:36]}  Qf2 {[%clk 0:00:07]} 29. Qxe7+ {[%clk 0:00:34]}  Kg8 {[%clk 0:00:07]} 30. Qe6+ {[%clk 0:00:31]}  Kh8 {[%clk 0:00:06]} 31. Qxd5 {[%clk 0:00:30]}  Rb8+ {[%clk 0:00:05]} 32. Ka1 {[%clk 0:00:22]}  Qb6 {[%clk 0:00:06]} 33. Qe5+ {[%clk 0:00:17]}  Kh7 {[%clk 0:00:06]} 34. Qe4+ {[%clk 0:00:16]}  Kh6 {[%clk 0:00:04]} 35. Qf4+ {[%clk 0:00:14]}  Kh7 {[%clk 0:00:04]} 36. Qb4 {[%clk 0:00:14]}  Qc7 {[%clk 0:00:01]} 37. Qe4+ {[%clk 0:00:13]} 1-0


[Site "https://www.chess.com"]

[Event "Titled Tuesday Blitz April 11 Early 2023"]
[White "Miszler, Levente"]
[Black "Zampronha, Wladimir Camilo"]
[WhiteFideId "763276"]
[BlackFideId "2103087"]
[WhiteElo "2176"]
[BlackElo "2176"]
[Result "1/2-1/2"]
[Round "02"]
[TimeControl "180+2"]
[Date "2023.04.11"]
[WhiteClock "0:01:58"]
[BlackClock "0:01:12"]

1. Nf3 {[%clk 0:02:54]}  Nf6 {[%clk 0:02:58]} 2. c4 {[%clk 0:02:52]}  e6 {[%clk 0:02:57]} 3. g3 {[%clk 0:02:52]}  d5 {[%clk 0:02:58]} 4. Bg2 {[%clk 0:02:53]}  Be7 {[%clk 0:02:58]} 5. O-O {[%clk 0:02:53]}  O-O {[%clk 0:02:58]} 6. d3 {[%clk 0:02:50]}  c5 {[%clk 0:02:57]} 7. a3 {[%clk 0:02:47]}  Nc6 {[%clk 0:02:56]} 8. Nbd2 {[%clk 0:02:46]}  d4 {[%clk 0:02:47]} 9. Rb1 {[%clk 0:02:46]}  a5 {[%clk 0:02:43]} 10. Ne1 {[%clk 0:02:41]}  e5 {[%clk 0:02:41]} 11. Nc2 {[%clk 0:02:36]}  Bg4 {[%clk 0:02:27]} 12. h3 {[%clk 0:02:36]}  Bh5 {[%clk 0:02:26]} 13. g4 {[%clk 0:02:31]}  Bg6 {[%clk 0:02:24]} 14. Ne4 {[%clk 0:02:21]}  Nxe4 {[%clk 0:02:23]} 15. dxe4 {[%clk 0:02:21]}  h5 {[%clk 0:02:18]} 16. Qd3 {[%clk 0:02:18]}  hxg4 {[%clk 0:02:17]} 17. hxg4 {[%clk 0:02:18]}  Bg5 {[%clk 0:02:13]} 18. b4 {[%clk 0:02:11]}  Bxc1 {[%clk 0:02:11]} 19. Rfxc1 {[%clk 0:02:12]}  axb4 {[%clk 0:02:11]} 20. axb4 {[%clk 0:02:13]}  cxb4 {[%clk 0:02:08]} 21. Nxb4 {[%clk 0:02:14]}  Nxb4 {[%clk 0:02:02]} 22. Rxb4 {[%clk 0:02:15]}  Qg5 {[%clk 0:01:57]} 23. Rcb1 {[%clk 0:02:13]}  Rfb8 {[%clk 0:01:40]} 24. Qg3 {[%clk 0:02:05]}  f6 {[%clk 0:01:29]} 25. Rxb7 {[%clk 0:01:58]}  Rxb7 {[%clk 0:01:30]} 26. Rxb7 {[%clk 0:01:58]}  Ra1+ {[%clk 0:01:30]} 27. Kh2 {[%clk 0:01:58]}  Qh6+ {[%clk 0:01:18]} 28. Qh3 {[%clk 0:01:58]}  Qf4+ {[%clk 0:01:16]} 29. Qg3 {[%clk 0:01:57]}  Qh6+ {[%clk 0:01:14]} 30. Qh3 {[%clk 0:01:57]}  Qf4+ {[%clk 0:01:13]} 31. Qg3 {[%clk 0:01:58]}  Qh6+ {[%clk 0:01:12]} 1/2-1/2


[Site "https://www.chess.com"]

[Event "Titled Tuesday Blitz April 11 Early 2023"]
[White "sebastianmarinp"]
[Black "Novikov, Evgenij"]
[BlackFideId "4125380"]
[WhiteElo "2283"]
[BlackElo "2242"]
[Result "0-1"]
[Round "02"]
[TimeControl "180+2"]
[Date "2023.04.11"]
[WhiteClock "0:00:03"]
[BlackClock "0:00:02"]

1. e4 {[%clk 0:03:00]}  c5 {[%clk 0:02:52]} 2. Nf3 {[%clk 0:03:00]}  d6 {[%clk 0:02:51]} 3. d4 {[%clk 0:03:00]}  cxd4 {[%clk 0:02:52]} 4. Nxd4 {[%clk 0:03:01]}  Nf6 {[%clk 0:02:52]} 5. Nc3 {[%clk 0:03:01]}  a6 {[%clk 0:02:52]} 6. h3 {[%clk 0:03:01]}  e5 {[%clk 0:02:52]} 7. Nde2 {[%clk 0:03:01]}  h5 {[%clk 0:02:51]} 8. Bg5 {[%clk 0:03:01]}  Be7 {[%clk 0:02:51]} 9. Qd3 {[%clk 0:02:54]}  Nbd7 {[%clk 0:02:42]} 10. O-O-O {[%clk 0:02:49]}  Nc5 {[%clk 0:02:41]} 11. Qf3 {[%clk 0:02:46]}  Be6 {[%clk 0:02:37]} 12. Ng3 {[%clk 0:02:39]}  g6 {[%clk 0:01:56]} 13. Kb1 {[%clk 0:02:37]}  h4 {[%clk 0:01:52]} 14. Nge2 {[%clk 0:02:33]}  b5 {[%clk 0:01:37]} 15. Nc1 {[%clk 0:02:29]}  Rc8 {[%clk 0:01:27]} 16. Nd3 {[%clk 0:02:15]}  Nxd3 {[%clk 0:00:49]} 17. Rxd3 {[%clk 0:02:14]}  Nd7 {[%clk 0:00:37]} 18. Bxe7 {[%clk 0:02:04]}  Qxe7 {[%clk 0:00:37]} 19. Qd1 {[%clk 0:02:00]}  Rc6 {[%clk 0:00:37]} 20. Be2 {[%clk 0:01:47]}  Nc5 {[%clk 0:00:35]} 21. Re3 {[%clk 0:01:27]}  O-O {[%clk 0:00:33]} 22. Bg4 {[%clk 0:01:22]}  b4 {[%clk 0:00:31]} 23. Nd5 {[%clk 0:01:08]}  Bxd5 {[%clk 0:00:31]} 24. Qxd5 {[%clk 0:01:09]}  Rb6 {[%clk 0:00:27]} 25. Be2 {[%clk 0:01:04]}  Rc8 {[%clk 0:00:24]} 26. Bc4 {[%clk 0:01:01]}  a5 {[%clk 0:00:24]} 27. g3 {[%clk 0:00:59]}  a4 {[%clk 0:00:22]} 28. gxh4 {[%clk 0:00:40]}  b3 {[%clk 0:00:19]} 29. cxb3 {[%clk 0:00:35]}  axb3 {[%clk 0:00:20]} 30. axb3 {[%clk 0:00:33]}  Ne6 {[%clk 0:00:19]} 31. h5 {[%clk 0:00:26]}  Nf4 {[%clk 0:00:19]} 32. Qd1 {[%clk 0:00:24]}  Nxh5 {[%clk 0:00:17]} 33. Rg1 {[%clk 0:00:24]}  Kh7 {[%clk 0:00:17]} 34. Qg4 {[%clk 0:00:21]}  Rxc4 {[%clk 0:00:12]} 35. bxc4 {[%clk 0:00:21]}  Qb7 {[%clk 0:00:13]} 36. Qe2 {[%clk 0:00:18]}  Nf4 {[%clk 0:00:12]} 37. Qd2 {[%clk 0:00:18]}  Rb4 {[%clk 0:00:11]} 38. Rc1 {[%clk 0:00:18]}  Qb6 {[%clk 0:00:11]} 39. h4 {[%clk 0:00:17]}  Kg7 {[%clk 0:00:11]} 40. Rg3 {[%clk 0:00:16]}  Kf8 {[%clk 0:00:07]} 41. Rg4 {[%clk 0:00:16]}  Ne6 {[%clk 0:00:06]} 42. h5 {[%clk 0:00:15]}  gxh5 {[%clk 0:00:06]} 43. Rh4 {[%clk 0:00:12]}  Nd4 {[%clk 0:00:03]} 44. Rxh5 {[%clk 0:00:11]}  Qc6 {[%clk 0:00:03]} 45. Rh8+ {[%clk 0:00:11]}  Ke7 {[%clk 0:00:03]} 46. Qg5+ {[%clk 0:00:11]}  Ke6 {[%clk 0:00:01]} 47. Rh6+ {[%clk 0:00:11]}  Kd7 {[%clk 0:00:01]} 48. Qg4+ {[%clk 0:00:10]}  Kc7 {[%clk 0:00:01]} 49. Rh8 {[%clk 0:00:11]}  Rxb2+ {[%clk 0:00:01]} 50. Kxb2 {[%clk 0:00:10]}  Qb6+ {[%clk 0:00:02]} 51. Kc3 {[%clk 0:00:10]}  Qb3+ {[%clk 0:00:02]} 52. Kd2 {[%clk 0:00:11]}  Qb2+ {[%clk 0:00:02]} 53. Kd1 {[%clk 0:00:09]}  Qxf2 {[%clk 0:00:02]} 54. Qc8+ {[%clk 0:00:07]}  Kb6 {[%clk 0:00:02]} 55. Qb8+ {[%clk 0:00:06]}  Kc5 {[%clk 0:00:01]} 56. Rc8+ {[%clk 0:00:06]}  Nc6 {[%clk 0:00:02]} 57. Rxc6+ {[%clk 0:00:04]}  Kxc6 {[%clk 0:00:02]} 58. Qb5+ {[%clk 0:00:05]}  Kc7 {[%clk 0:00:02]} 59. Qa5+ {[%clk 0:00:05]}  Kd7 {[%clk 0:00:02]} 60. Qd2 {[%clk 0:00:04]}  Qf3+ {[%clk 0:00:01]} 61. Kc2 {[%clk 0:00:04]}  Qxe4+ {[%clk 0:00:02]} 62. Qd3 {[%clk 0:00:04]}  Qg2+ {[%clk 0:00:01]} 63. Kc3 {[%clk 0:00:05]}  Qb7 {[%clk 0:00:02]} 64. Rc2 {[%clk 0:00:05]}  Qb6 {[%clk 0:00:02]} 65. Rb2 {[%clk 0:00:06]}  Qa5+ {[%clk 0:00:02]} 66. Kb3 {[%clk 0:00:06]}  Qb6+ {[%clk 0:00:02]} 67. Kc2 {[%clk 0:00:06]}  Qa5 {[%clk 0:00:02]} 68. Qd2 {[%clk 0:00:07]}  Qa4+ {[%clk 0:00:02]} 69. Rb3 {[%clk 0:00:06]}  Qc6 {[%clk 0:00:03]} 70. Rb2 {[%clk 0:00:06]}  Qe4+ {[%clk 0:00:03]} 71. Kc3 {[%clk 0:00:07]}  Qf5 {[%clk 0:00:02]} 72. Qd3 {[%clk 0:00:08]}  e4 {[%clk 0:00:03]} 73. Qd4 {[%clk 0:00:07]}  Qf3+ {[%clk 0:00:03]} 74. Kb4 {[%clk 0:00:07]}  e3 {[%clk 0:00:03]} 75. Rb3 {[%clk 0:00:06]}  Qb7+ {[%clk 0:00:02]} 76. Ka3 {[%clk 0:00:06]}  Qa8+ {[%clk 0:00:02]} 77. Kb2 {[%clk 0:00:06]}  Qg2+ {[%clk 0:00:01]} 78. Ka3 {[%clk 0:00:05]}  e2 {[%clk 0:00:02]} 79. Rb7+ {[%clk 0:00:03]}  Kc6 {[%clk 0:00:02]} 80. Qd5+ {[%clk 0:00:03]}  Qxd5 {[%clk 0:00:02]} 81. cxd5+ {[%clk 0:00:03]}  Kxb7 {[%clk 0:00:02]} 0-1


[Site "https://www.chess.com"]